bitfinex-derivatives/quotes_ETHF0:USTF0_20251028
["timestamp","ask_amount","ask_price","bid_price","bid_amount"]
[1761611231265,0.8586,4129.3,4129.2,1.33219568]
[1761611232563,0.8586,4129.3,4129.2,2.36479136]
[1761611232865,0.8586,4129.3,4129.2,1.33219568]
[1761611235874,0.6148,4129.3,4129.2,1.48199568]
[1761611237271,0.6148,4129.3,4129.2,1.33219568]
[1761611238773,0.3669,4129.3,4129.2,1.48199568]
[1761611239781,0.3669,4129.3,4129.2,2.51459136]
[1761611240078,0.3669,4129.3,4129.2,1.48199568]
[1761611240276,0.5206,4129.5,4129.4,0.4494]
[1761611244887,0.7685,4129.5,4129.4,0.4494]
[1761611246381,0.3669,4129.4,4129.3,3.1358]
[1761611246588,0.1537,4129.0,4128.9,1.45843949]
[1761611246882,1.0123,4129.0,4128.9,1.33407935]
[1761611247489,1.0123,4129.0,4128.9,4.46987935]
[1761611248390,1.0123,4129.0,4128.9,1.33407935]
[1761611253590,1.0123,4129.0,4128.9,4.46987935]
[1761611255792,1.55499503,4129.0,4128.9,4.32007935]
[1761611257487,1.55499503,4129.0,4128.9,4.17027935]
[1761611259394,1.55499503,4129.0,4128.9,1.03447935]
[1761611259600,1.55499503,4129.0,4128.9,1.11077935]
[1761611260099,1.55499503,4129.0,4128.9,1.18707935]
[1761611265708,1.55499503,4129.0,4128.9,1.03447935]
[1761611266405,1.55499503,4129.0,4128.9,1.08867935]
[1761611269001,1.0123,4129.0,4128.9,1.08867935]
[1761611270712,1.0123,4129.0,4128.9,1.14287935]
[1761611271213,1.55484871,4129.0,4128.9,1.14287935]
[1761611275019,1.55484871,4129.0,4128.9,1.08867935]
[1761611282424,1.51574871,4129.0,4128.9,1.03447935]
[1761611283322,1.51574871,4129.0,4128.9,1.08867935]
[1761611288627,1.06314871,4129.0,4128.9,3.95078085]
[1761611288821,1.06314871,4129.0,4128.9,2.48223517]
[1761611291129,1.06314871,4129.0,4128.9,3.20198873]
[1761611292132,0.5206,4129.0,4128.9,3.20198873]
[1761611292329,0.3369,4129.7,4129.6,0.0868]
[1761611292527,0.3369,4129.7,4129.6,1.44659924]
[1761611292729,0.5538,4129.7,4129.6,1.88247924]
[1761611293029,0.3369,4130.3,4130.2,0.1302]
[1761611293232,0.3369,4130.3,4130.2,3.18965931]
[1761611293530,0.3369,4130.3,4130.2,1.88241924]
[1761611296024,0.5538,4130.3,4130.2,1.88241924]
[1761611296222,0.5538,4130.3,4130.2,1.83901924]
[1761611297133,0.7621,4130.3,4130.2,1.40319924]
[1761611298238,0.7621,4130.3,4130.2,1.31639924]
[1761611298539,0.7621,4130.2,4130.1,0.0434]
[1761611298737,0.7621,4130.2,4130.1,1.35979924]
[1761611300739,0.7621,4130.2,4130.1,1.31639924]
[1761611301533,0.7621,4130.2,4129.7,1.31639924]
[1761611301534,0.1358,4130.0,4129.7,1.31639924]
[1761611301737,0.7621,4129.8,4129.7,1.31639924]
[1761611302739,0.7621,4129.8,4129.1,0.43593]
[1761611302740,0.7621,4129.4,4129.3,1.31639924]
[1761611310640,0.1358,4129.0,4128.9,0.48123367]
[1761611310836,0.8979,4129.0,4128.9,1.36168291]
[1761611311044,0.8979,4129.0,4128.9,1.40508291]
[1761611311947,0.8979,4129.0,4128.9,1.84103291]
[1761611312548,0.6896,4129.0,4128.9,1.84103291]
[1761611312848,0.4727,4129.0,4128.9,1.88443291]
[1761611314149,0.6896,4129.0,4128.9,1.88443291]
[1761611314546,0.6896,4129.0,4128.9,1.84103291]
[1761611316351,0.6896,4129.0,4128.9,1.40508291]
[1761611316952,0.8993,4129.0,4128.9,1.40508291]
[1761611322154,0.8993,4129.0,4128.9,1.31828291]
[1761611325359,0.8993,4129.0,4128.9,1.40608291]
[1761611332962,0.8993,4129.0,4128.9,1.36218291]
[1761611333465,0.8993,4129.0,4128.9,1.40608291]
[1761611334964,0.4727,4129.0,4128.9,1.88593291]
[1761611335167,0.4727,4129.0,4128.9,3.19317298]
[1761611335763,0.3369,4129.0,4128.9,1.88593291]
[1761611338071,0.3341,4129.4,4129.3,0.0878]
[1761611338371,1.31248039,4129.4,4129.3,1.40419924]
[1761611351678,1.31248039,4129.4,4129.3,1.12024596]
[1761611357380,1.31248039,4129.4,4129.3,1.07634596]
[1761611362384,1.31248039,4129.4,4129.3,1.03244596]
[1761611363684,1.31248039,4129.4,4129.3,1.07604596]
[1761611363983,1.31248039,4129.4,4129.3,1.03244596]
[1761611367385,1.31248039,4129.4,4129.3,1.07604596]
[1761611370884,1.31248039,4129.4,4129.3,1.03244596]
[1761611371290,0.7652,4129.3,4129.2,1.03244596]
[1761611371485,1.30788039,4129.3,4129.2,1.03244596]
[1761611372292,1.30788039,4129.3,4129.2,2.06489192]
[1761611372690,1.30788039,4129.3,4129.2,1.03244596]
[1761611375296,1.30788039,4129.3,4129.2,2.06489192]
[1761611377799,1.30788039,4129.3,4129.2,2.10789192]
[1761611379893,1.30788039,4129.3,4129.2,2.15089192]
[1761611384401,0.4463,4129.1,4129.0,3.898]
[1761611384600,0.4463,4129.1,4129.0,4.93044596]
[1761611384601,0.7639,4129.1,4129.0,4.93044596]
[1761611384808,1.30658039,4129.1,4129.0,4.93044596]
[1761611385204,1.30658039,4129.1,4129.0,4.97344596]
[1761611388398,1.30658039,4129.1,4129.0,1.07544596]
[1761611397909,1.30658039,4129.1,4129.0,1.03244596]
[1761611399999,1.30658039,4129.1,4129.0,1.07544596]
[1761611402006,1.30658039,4129.1,4129.0,1.03244596]
[1761611402706,0.98898039,4129.1,4128.9,0.00188367]
[1761611402907,0.4463,4128.2,4128.1,1.03244596]
[1761611403407,0.7639,4128.2,4128.1,1.03244596]
[1761611403705,0.7639,4127.9,4127.7,1.03244596]
[1761611403904,1.3097106,4127.9,4127.8,0.02656253]
[1761611404512,1.49586407,4127.9,4127.8,0.02656253]
[1761611405515,0.7525,4126.7,4126.6,0.0438]
[1761611405813,0.7525,4126.7,4126.6,1.07624596]
[1761611406206,0.7525,4126.7,4126.6,1.03244596]
[1761611406408,0.7525,4126.7,4126.6,1.03491378]
[1761611407408,0.3536,4127.5,4126.7,0.3385]
[1761611407603,0.5755,4127.5,4127.4,1.26324596]
[1761611407808,1.11608799,4127.5,4127.4,1.26324596]
[1761611408610,1.11608799,4127.5,4127.4,1.03244596]
[1761611409613,1.44958799,4127.5,4127.4,1.03244596]
[1761611410207,0.909,4127.5,4127.4,1.03244596]
[1761611410611,0.78,4127.2,4127.1,1.03244596]
[1761611411313,0.78,4126.9,4126.8,1.03244596]
[1761611411813,0.78,4126.9,4126.8,1.31820256]
[1761611413312,0.4465,4126.7,4126.6,0.00246782]
[1761611413610,0.78,4126.7,4126.6,0.00246782]
[1761611422123,0.3335,4126.7,4126.6,0.79526782]
[1761611422324,0.5581,4126.7,4126.6,0.79526782]
[1761611422624,0.78,4126.7,4126.6,0.23326782]
[1761611427430,0.78,4126.7,4126.6,0.00246782]
[1761611429128,1.32382529,4126.7,4126.6,0.00246782]
[1761611430632,0.78,4125.6,4125.5,0.2308]
[1761611431328,0.78,4125.6,4125.4,1.31820256]
[1761611431329,0.4627,4125.5,4125.4,1.31820256]
[1761611431532,0.78,4124.6,4124.5,0.4543]
[1761611431832,0.78288575,4124.6,4124.5,1.77427719]
[1761611432234,0.78288575,4124.6,4124.5,2.11277719]
[1761611432434,0.33638575,4124.6,4124.5,2.11277719]
[1761611432634,0.00288575,4124.6,4124.5,2.21777719]
[1761611435331,0.34478575,4124.6,4124.5,0.89957463]
[1761611435936,0.34478575,4124.6,4124.5,0.79457463]
[1761611437026,0.56258575,4124.6,4124.5,0.79457463]
[1761611441038,0.34478575,4124.6,4124.5,1.23099463]
[1761611441536,0.34478575,4124.6,4124.5,0.79457463]
[1761611442435,0.34478575,4124.6,4124.5,1.23099463]
[1761611442836,0.00288575,4124.6,4124.5,1.33569463]
[1761611444038,0.34478575,4124.6,4124.5,1.23099463]
[1761611444339,0.00288575,4124.6,4124.5,1.23099463]
[1761611445334,0.00288575,4124.6,4124.5,1.33569463]
[1761611446733,0.34478575,4124.6,4124.5,1.33569463]
[1761611447038,0.34478575,4124.6,4124.5,1.23099463]
[1761611447539,0.34478575,4124.6,4124.5,0.79457463]
[1761611447739,0.34478575,4124.6,4124.5,1.23099463]
[1761611456041,0.79328575,4124.6,4124.5,0.79457463]
[1761611456242,0.79328575,4124.6,4124.5,0.45607463]
[1761611460235,1.34001528,4124.6,4124.5,0.78317463]
[1761611460540,1.34001528,4124.6,4124.5,1.21959463]
[1761611463149,0.89151528,4124.6,4124.5,1.21959463]
[1761611463645,1.10931528,4124.6,4124.5,1.21959463]
[1761611463845,1.34001528,4124.6,4124.5,0.78317463]
[1761611464238,1.34001528,4124.6,4124.5,0.45607463]
[1761611464448,1.34001528,4124.6,4124.5,0.23257463]
[1761611466346,1.34001528,4124.6,4124.5,0.00177463]
[1761611466742,0.1317,4123.5,4123.3,1.30740814]
[1761611466949,0.7815,4123.3,4123.2,1.53560814]
[1761611467345,0.7815,4123.3,4123.2,0.2282]
[1761611467850,0.7815,4123.3,4123.2,0.2309663]
[1761611468740,0.7815,4123.3,4123.2,0.0027663]
[1761611469141,1.32792943,4123.3,4123.2,0.0027663]
[1761611469346,0.7815,4123.3,4123.2,0.0027663]
[1761611469740,0.96813438,4123.3,4123.2,0.0027663]
[1761611469941,1.51422594,4123.3,4123.2,0.0027663]
[1761611470145,1.18202594,4123.3,4122.2,1.30740814]
[1761611470357,0.3322,4122.2,4122.1,1.31820256]
[1761611470553,0.5614,4122.2,4122.1,2.08260256]
[1761611471146,0.5614,4122.2,4122.1,2.08546379]
[1761611471349,0.7815,4122.2,4122.1,1.54926379]
[1761611471951,0.7815,4122.2,4122.1,1.32106379]
[1761611472354,0.7815,4122.2,4122.1,1.75776379]
[1761611472554,0.7815,4122.2,4122.1,2.08546379]
[1761611473549,0.3322,4122.2,4122.1,2.08546379]
[1761611473752,0.3322,4122.9,4122.8,0.7644]
[1761611474053,0.5614,4122.9,4122.8,1.80004605]
[1761611475156,0.7815,4122.9,4122.8,1.80004605]
[1761611475357,0.7815,4122.9,4122.8,1.47234605]
[1761611476647,0.7815,4122.9,4122.8,1.80004605]
[1761611476648,0.5614,4122.9,4122.8,1.80004605]
[1761611476853,0.7815,4122.9,4122.8,1.47234605]
[1761611480157,0.7815,4122.9,4122.8,1.80004605]
[1761611480352,0.3322,4123.4,4122.8,2.2797921]
[1761611480556,0.7815,4123.4,4123.3,1.80004605]
[1761611480754,0.3322,4123.4,4123.3,1.80004605]
[1761611481661,0.3322,4123.4,4123.3,2.23659605]
[1761611482361,0.00288575,4124.6,4123.8,0.7644]
[1761611482561,0.3322,4124.3,4123.9,0.5559]
[1761611482765,0.5614,4124.0,4123.9,0.7644]
[1761611483063,0.9132,4124.0,4123.9,0.7644]
[1761611483370,0.9132,4124.0,4123.9,0.4367]
[1761611483667,0.9132,4124.0,4123.9,1.26384605]
[1761611483858,0.9132,4124.0,4123.9,1.03564605]
[1761611485565,0.9132,4124.0,4123.9,1.47234605]
[1761611486161,0.9132,4124.0,4123.9,1.26384605]
[1761611486466,0.9132,4124.0,4123.9,1.03564605]
[1761611488061,0.9132,4124.0,4123.9,1.26384605]
[1761611488665,0.9132,4124.0,4123.9,1.47234605]
[1761611489464,0.9132,4124.0,4123.9,1.80004605]
[1761611493174,0.5614,4124.4,4124.3,0.7644]
[1761611493371,1.10616748,4124.4,4124.3,1.80004605]
[1761611493871,0.5614,4124.4,4124.3,1.80004605]
[1761611494069,0.7815,4124.4,4124.3,1.80004605]
[1761611494672,0.7815,4124.4,4124.3,1.47234605]
[1761611494872,1.32639169,4124.4,4124.3,1.26384605]
[1761611495568,1.32639169,4124.4,4124.3,1.25694605]
[1761611495767,1.32639169,4124.4,4124.3,1.03564605]
[1761611498068,1.32639169,4124.4,4124.3,1.25694605]
[1761611499471,1.32639169,4124.4,4124.3,1.80464605]
[1761611500369,1.32639169,4124.4,4124.3,1.25694605]
[1761611500571,1.32639169,4124.4,4124.3,1.03564605]
[1761611503271,0.7817,4124.1,4124.0,1.03564605]
[1761611503872,0.7817,4124.1,4124.0,1.25694605]
[1761611504270,0.7817,4124.1,4124.0,1.03564605]
[1761611504972,1.32717826,4124.1,4124.0,1.03564605]
[1761611505275,0.461,4124.0,4123.8,3.898]
[1761611505575,1.32733714,4123.9,4123.8,3.898]
[1761611508772,1.32733714,4123.9,4123.4,1.03564605]
[1761611508773,0.9123,4123.5,4123.4,1.03564605]
[1761611508973,1.45793714,4123.5,4123.4,1.03564605]
[1761611510671,1.45793714,4123.5,4123.4,1.25694605]
[1761611510973,1.45793714,4123.5,4123.4,1.48024605]
[1761611511175,1.45793714,4123.5,4123.4,1.25694605]
[1761611515075,1.45793714,4123.5,4123.4,0.2213]
[1761611515277,1.45793714,4123.5,4123.4,1.25694605]
[1761611517783,1.45793714,4123.5,4123.4,1.03564605]
[1761611519078,1.45793714,4123.5,4123.4,1.25694605]
[1761611519581,1.12753714,4123.5,4123.1,1.03564605]
[1761611519877,0.7817,4122.2,4122.1,0.00286123]
[1761611520079,1.32733714,4122.2,4122.1,0.22416123]
[1761611520578,1.32733714,4122.2,4122.1,0.00286123]
[1761611521882,1.52311426,4122.2,4122.1,0.00286123]
[1761611523183,0.97747712,4122.2,4122.1,0.00286123]
[1761611524280,0.97747712,4122.2,4122.1,0.22416123]
[1761611524888,0.97747712,4122.2,4122.1,0.00286123]
[1761611525186,0.97747712,4122.2,4122.1,0.23356123]
[1761611525982,0.97747712,4122.2,4122.1,0.00286123]
[1761611528790,0.97747712,4122.2,4122.1,0.21986123]
[1761611528983,0.97747712,4122.2,4122.1,0.00286123]
[1761611531186,0.7817,4122.2,4122.1,0.21986123]
[1761611531582,0.7817,4122.2,4122.1,0.44956123]
[1761611531781,0.7817,4122.2,4122.1,0.79086123]
[1761611531984,0.3355,4122.4,4122.3,0.4467]
[1761611532185,0.19079164,4122.6,4122.5,0.788]
[1761611532386,0.19079164,4122.6,4122.5,0.8928]
[1761611532781,0.3355,4122.8,4122.7,0.4467]
[1761611533090,0.5543,4122.8,4122.7,1.82364605]
[1761611533894,0.768,4122.8,4122.7,1.82364605]
[1761611534189,0.768,4122.8,4122.7,1.48234605]
[1761611534494,0.768,4122.8,4122.7,1.03564605]
[1761611534692,0.768,4122.2,4122.1,0.00286123]
[1761611534888,0.768,4122.2,4122.1,0.21986123]
[1761611535191,0.768,4122.2,4122.1,0.44956123]
[1761611535388,0.768,4122.2,4122.1,0.79086123]
[1761611535794,0.768,4122.2,4122.1,0.44956123]
[1761611537202,0.5543,4122.2,4122.1,0.79086123]
[1761611537596,0.1353,4122.5,4122.2,0.3413]
[1761611537597,0.3355,4122.5,4122.2,0.3413]
[1761611537900,0.3355,4122.5,4122.4,2.03141228]
[1761611538101,0.5543,4122.5,4122.4,2.03141228]
[1761611539206,0.3355,4122.5,4122.4,2.03141228]
[1761611539797,0.3541,4123.0,4122.4,2.03141228]
[1761611540002,0.5543,4122.8,4122.7,0.2297]
[1761611540202,1.31462627,4122.8,4122.7,0.788]
[1761611541200,1.31462627,4122.8,4122.7,0.4467]
[1761611542205,1.31462627,4122.8,4122.7,0.788]
[1761611543107,1.31462627,4122.8,4122.7,0.4467]
[1761611546208,1.31462627,4122.8,4122.7,0.788]
[1761611547107,1.31462627,4122.8,4122.7,0.217]
[1761611547409,0.9033,4122.5,4122.4,2.03141228]
[1761611547610,1.44992627,4122.5,4122.4,1.69011228]
[1761611550902,0.2188,4122.2,4122.1,0.21986123]
[1761611551108,0.768,4122.2,4122.1,0.00286123]
[1761611551307,1.31462627,4122.2,4122.1,0.00286123]
[1761611551910,1.31462627,4122.2,4122.1,0.44956123]
[1761611552208,1.31462627,4122.2,4122.1,0.79086123]
[1761611552611,1.31462627,4122.2,4122.1,0.44956123]
[1761611554811,1.31462627,4122.2,4122.1,0.21986123]
[1761611555808,1.31462627,4122.2,4122.1,0.00286123]
[1761611559214,0.7352,4120.8,4120.7,0.2268]
[1761611559414,1.28311113,4120.8,4120.7,0.2268]
[1761611559611,0.7352,4120.8,4120.7,0.2268]
[1761611559812,0.7352,4120.8,4120.7,0.4496]
[1761611560012,1.28606389,4120.8,4120.7,0.45266939]
[1761611560211,0.73816296,4120.8,4120.7,0.45266939]
[1761611560824,0.73816296,4120.8,4120.7,0.00306939]
[1761611561119,1.28577698,4120.8,4120.7,0.00306939]
[1761611562319,0.73816296,4120.8,4120.7,0.00306939]
[1761611564222,0.73816296,4120.8,4120.7,0.22986939]
[1761611564418,0.73816296,4120.8,4120.7,0.45266939]
[1761611568619,0.73816296,4120.8,4120.7,0.00306939]
[1761611572423,1.4783197,4120.8,4120.7,0.00306939]
[1761611575726,1.28765436,4120.8,4120.7,0.77766939]
[1761611575924,1.28765436,4120.8,4120.7,0.45266939]
[1761611576425,1.28765436,4120.8,4120.7,0.22986939]
[1761611577324,1.28765436,4120.8,4120.7,0.00306939]
[1761611580020,1.28765436,4120.8,4120.7,0.22986939]
[1761611581525,0.55245436,4120.8,4120.7,0.77766939]
[1761611581825,0.31696296,4120.8,4120.7,0.77766939]
[1761611582123,0.53006296,4120.8,4120.7,0.77766939]
[1761611582930,0.73816296,4120.8,4120.7,0.00306939]
[1761611583631,0.73816296,4120.8,4120.7,0.22986939]
[1761611583823,0.73816296,4120.8,4120.7,0.00306939]
[1761611584133,1.28865679,4120.8,4120.7,0.00306939]
[1761611584924,0.3134,4120.7,4119.1,0.3317]
[1761611585123,0.3134,4120.7,4118.6,1.16589927]
[1761611585124,0.4562,4118.7,4118.6,1.16589927]
[1761611585320,0.8983,4118.5,4118.4,0.4332]
[1761611585526,1.44879383,4118.5,4118.4,0.4332]
[1761611586021,0.5399,4118.8,4118.5,0.4488]
[1761611586231,0.3282,4118.8,4118.7,2.02101228]
[1761611587228,0.5399,4118.8,4118.7,2.02101228]
[1761611587631,0.3282,4118.8,4118.7,2.02101228]
[1761611588125,0.1287,4119.5,4119.2,0.2109]
[1761611588329,0.3282,4119.5,4119.4,1.67981228]
[1761611588531,0.6722,4119.5,4119.4,1.67981228]
[1761611588726,0.8913,4119.5,4119.4,2.02101228]
[1761611589725,0.759,4119.9,4119.8,0.4364]
[1761611589926,1.31842238,4119.9,4119.8,0.4364]
[1761611590230,1.31842238,4119.9,4119.8,1.67981228]
[1761611590931,1.31842238,4119.9,4119.8,2.02101228]
[1761611591125,0.55942238,4119.9,4119.8,2.02101228]
[1761611591323,0.3282,4120.1,4119.9,0.3412]
[1761611591527,0.55936785,4120.0,4119.9,0.7776]
[1761611592221,0.2117,4120.2,4120.0,0.3412]
[1761611592425,0.3282,4120.1,4120.0,0.7776]
[1761611592624,0.3282,4120.1,4120.0,2.02101228]
[1761611594931,0.5399,4120.4,4120.3,0.7776]
[1761611595131,1.09926915,4120.4,4120.3,2.02101228]
[1761611595331,0.5399,4120.4,4120.3,2.02101228]
[1761611595531,1.09929384,4120.4,4120.3,2.02101228]
[1761611595730,1.09929384,4120.4,4120.3,1.81447378]
[1761611596728,0.55939384,4120.4,4120.3,1.81447378]
[1761611596930,0.3282,4120.7,4120.6,0.7776]
[1761611597223,0.00296296,4120.8,4120.7,0.7776]
[1761611597430,0.00296296,4120.8,4120.6,2.51057756]
[1761611597431,0.8913,4121.5,4121.4,0.4364]
[1761611597631,1.45302459,4121.5,4121.4,1.24777378]
[1761611598230,1.45302459,4121.5,4121.4,1.03687378]
[1761611598532,1.12718141,4121.5,4121.4,0.00295584]
[1761611598929,0.759,4120.9,4120.8,1.03687378]
[1761611599130,1.32072459,4120.9,4120.8,1.03687378]
[1761611599932,1.32072459,4120.9,4120.8,1.2502019]
[1761611600438,0.759,4120.9,4120.8,1.4757019]
[1761611601536,1.32055212,4120.9,4120.8,1.4757019]
[1761611603539,1.32055212,4120.9,4120.8,1.2502019]
[1761611605538,1.32055212,4120.9,4120.8,1.4757019]
[1761611606238,1.10145212,4120.9,4120.8,1.8169019]
[1761611606439,0.56155212,4120.9,4120.8,3.29058568]
[1761611606640,0.5399,4121.2,4121.1,0.7776]
[1761611606936,1.10121685,4121.2,4121.1,1.81447378]
[1761611608239,1.32031685,4121.2,4121.1,1.81447378]
[1761611608440,1.32031685,4121.2,4121.1,1.47327378]
[1761611611036,1.32031685,4121.2,4121.1,1.03687378]
[1761611611542,0.759,4121.2,4121.1,1.03687378]
[1761611611738,0.759,4121.2,4121.1,1.24777378]
[1761611612744,0.759,4120.9,4120.8,0.78002812]
[1761611612938,0.759,4120.9,4120.8,1.2502019]
[1761611613242,0.759,4120.9,4120.8,1.0393019]
[1761611613735,0.759,4120.9,4120.8,0.00242812]
[1761611615545,1.32003797,4120.9,4120.8,0.00242812]
[1761611616642,0.3462,4121.2,4120.8,2.93238568]
[1761611616850,0.3462,4121.2,4121.1,2.21965378]
[1761611617739,0.3462,4121.2,4121.1,1.78287378]
[1761611617945,0.5583,4121.2,4121.1,1.78287378]
[1761611618845,0.7696,4121.2,4121.1,1.78287378]
[1761611619050,0.7696,4121.2,4121.1,1.45627378]
[1761611619344,0.7696,4121.2,4121.1,1.24657378]
[1761611620044,0.7696,4121.2,4121.1,1.03687378]
[1761611620439,0.7696,4121.2,4120.8,0.00242812]
[1761611620440,0.137,4121.0,4120.8,1.2490019]
[1761611620747,0.7696,4120.9,4120.8,0.00242812]
[1761611621844,0.7696,4120.9,4120.8,1.0393019]
[1761611622448,0.7696,4120.9,4120.8,1.2490019]
[1761611622749,0.7696,4120.9,4120.8,1.4587019]
[1761611623046,0.7696,4120.9,4120.8,1.7853019]
[1761611623441,0.3462,4120.9,4120.8,2.82217568]
[1761611623638,0.5583,4121.4,4121.3,0.746]
[1761611623839,0.7696,4121.4,4121.3,1.45627378]
[1761611625151,0.5583,4121.4,4121.3,1.78287378]
[1761611625452,0.13465682,4121.5,4121.3,1.78287378]
[1761611625453,0.56065682,4121.5,4121.4,0.746]
[1761611625647,0.69765682,4121.5,4121.4,0.746]
[1761611626049,0.90895682,4121.5,4121.4,0.746]
[1761611626249,0.90895682,4121.5,4121.4,0.4194]
[1761611628654,1.47184805,4121.5,4121.4,0.4194]
[1761611631454,1.47184805,4121.5,4121.4,0.2097]
[1761611637351,1.47184805,4121.5,4121.4,0.4194]
[1761611638752,1.47184805,4121.5,4121.4,0.746]
[1761611640056,1.47184805,4121.5,4121.4,0.4194]
[1761611640554,1.47184805,4121.5,4121.4,0.746]
[1761611641358,1.47184805,4121.5,4121.4,0.4194]
[1761611642558,1.47184805,4121.5,4121.4,0.2097]
[1761611642759,0.56524805,4121.5,4121.4,1.18275]
[1761611642965,0.00235682,4121.5,4121.4,1.18275]
[1761611643661,0.34855682,4121.5,4121.4,1.18275]
[1761611644058,0.90895682,4121.5,4121.4,0.4194]
[1761611645059,0.7609,4121.4,4121.3,1.03687378]
[1761611645263,1.3236135,4121.4,4121.3,1.03687378]
[1761611645459,1.3236135,4121.4,4120.9,0.7713]
[1761611645460,0.8932,4121.0,4120.9,0.7713]
[1761611646363,0.8932,4121.0,4120.9,1.2081]
[1761611647959,0.5457,4121.0,4120.9,1.2081]
[1761611648163,0.3144,4121.4,4121.2,0.332]
[1761611648363,0.87748908,4121.3,4121.2,0.7775]
[1761611648563,1.09558908,4121.3,4121.2,0.7775]
[1761611649467,1.09558908,4121.3,4121.2,1.81437378]
[1761611649665,1.31578908,4121.3,4121.2,1.48237378]
[1761611650068,1.31578908,4121.3,4121.2,1.26377378]
[1761611652265,1.31578908,4121.3,4121.2,1.48237378]
[1761611652465,1.31578908,4121.3,4121.2,1.81437378]
[1761611653273,1.31578908,4121.3,4121.2,1.48237378]
[1761611657476,1.31578908,4121.3,4121.2,1.81437378]
[1761611657671,1.31578908,4121.3,4121.2,2.02123398]
[1761611658170,1.31578908,4121.3,4121.2,1.24373398]
[1761611658381,1.31578908,4121.3,4120.8,0.00242812]
[1761611658382,0.7527,4120.9,4120.8,0.00242812]
[1761611658669,1.31578908,4120.9,4120.8,0.00242812]
[1761611659068,2.18930881,4120.9,4120.8,0.00242812]
[1761611659272,1.31578908,4120.9,4120.8,0.00242812]
[1761611659874,0.4383,4119.8,4119.0,1.36986438]
[1761611660075,0.1325,4120.0,4117.5,0.1268]
[1761611660076,0.4383,4118.7,4117.5,0.1268]
[1761611660377,0.87051297,4118.5,4118.2,0.332]
[1761611660570,0.56308908,4118.4,4118.3,0.5589]
[1761611660772,1.3057567,4118.5,4118.4,0.332]
[1761611660973,1.5117129,4118.5,4118.4,1.68923398]
[1761611661179,0.64125142,4118.5,4118.4,1.68923398]
[1761611661474,0.64125142,4118.5,4118.4,2.02123398]
[1761611662571,0.64125142,4118.5,4118.4,1.57573398]
[1761611662775,0.64125142,4118.5,4118.4,0.332]
[1761611663676,0.64125142,4118.5,4118.4,0.5589]
[1761611664177,0.00311373,4118.5,4118.4,0.5589]
[1761611664975,0.00311373,4118.5,4118.4,0.7775]
[1761611665179,0.00311373,4118.5,4118.4,2.02123398]
[1761611665573,0.87046148,4119.8,4118.4,2.12628398]
[1761611665772,0.63765401,4119.7,4119.6,0.332]
[1761611666774,0.63938737,4119.7,4119.6,0.332]
[1761611667075,0.63938737,4119.7,4119.5,0.1268]
[1761611667374,0.63765401,4119.6,4119.5,0.1268]
[1761611667976,0.63765401,4119.6,4119.5,0.4588]
[1761611672877,0.63765401,4119.6,4119.5,0.6857]
[1761611673979,0.63765401,4119.6,4119.5,0.4588]
[1761611674179,0.63765401,4119.6,4119.5,0.4452]
[1761611674475,0.63765401,4119.6,4119.5,0.6638]
[1761611675675,0.63765401,4119.6,4119.5,0.8837]
[1761611680085,0.00173336,4119.7,4119.6,0.7547]
[1761611680487,0.00173336,4119.7,4119.6,1.99843398]
[1761611681591,0.00173336,4119.7,4119.6,2.43536398]
[1761611681883,0.00173336,4119.7,4119.6,0.7547]
[1761611683087,0.64039424,4119.7,4119.6,0.7547]
[1761611684793,0.64039424,4119.7,4119.3,0.3162]
[1761611684992,0.63866088,4119.6,4119.5,0.4452]
[1761611685398,1.94441758,4119.6,4119.5,0.4452]
[1761611686189,0.63866088,4119.6,4119.2,0.3162]
[1761611686493,1.30352929,4119.5,4119.2,0.3162]
[1761611686694,1.30352929,4119.3,4119.2,0.3162]
[1761611686884,0.63866088,4119.3,4119.2,0.3162]
[1761611687088,0.63866088,4119.4,4119.2,0.3162]
[1761611687390,0.63866088,4119.3,4119.2,0.3162]
[1761611687593,0.63866088,4119.4,4119.2,0.3162]
[1761611687794,0.63866088,4119.3,4119.2,0.3162]
[1761611688094,2.37067037,4119.3,4119.2,0.3162]
[1761611688291,0.63866088,4119.3,4119.0,0.1268]
[1761611688488,2.37988283,4119.2,4119.1,0.3162]
[1761611689089,0.63866088,4119.2,4119.1,0.3162]
[1761611689892,2.38127726,4119.2,4119.1,0.3162]
[1761611690496,2.38127726,4119.2,4119.1,0.7547]
[1761611691296,0.63866088,4119.2,4119.1,0.5348]
[1761611692998,2.38189774,4119.2,4119.1,0.7547]
[1761611693297,0.63866088,4119.2,4119.1,0.7547]
[1761611694100,0.63866088,4119.2,4119.1,0.5348]
[1761611694294,0.63866088,4119.2,4119.1,0.3162]
[1761611695399,0.63866088,4119.2,4119.0,0.1268]
[1761611695596,0.63866088,4119.1,4118.5,0.443]
[1761611695792,1.30807835,4118.6,4118.5,0.443]
[1761611696599,0.63866088,4118.6,4118.5,0.443]
[1761611699103,0.63866088,4118.6,4118.5,0.6616]
[1761611699597,0.63866088,4118.6,4118.5,0.8815]
[1761611699804,1.30697815,4118.7,4118.5,0.5653]
[1761611700100,1.30697815,4118.7,4118.6,0.7547]
[1761611700401,1.9164953,4118.7,4118.6,0.7547]
[1761611701394,1.9164953,4118.7,4118.5,0.1268]
[1761611701600,1.9164953,4118.6,4118.3,0.31859076]
[1761611701801,0.60951715,4118.5,4118.3,0.31859076]
[1761611702102,1.9164953,4118.5,4118.3,0.31859076]
[1761611702302,1.9164953,4118.4,4118.3,0.31859076]
[1761611703300,0.60951715,4118.4,4118.3,0.31859076]
[1761611703504,1.30626421,4118.4,4118.3,0.31859076]
[1761611703901,1.91578136,4118.4,4118.3,0.31859076]
[1761611704302,0.60951715,4118.4,4118.3,0.31859076]
[1761611704501,0.60951715,4118.4,4118.3,0.76289076]
[1761611704704,1.48016151,4118.4,4118.3,0.76289076]
[1761611704902,1.26789137,4118.4,4118.3,0.76289076]
[1761611705202,1.30626421,4119.4,4119.3,0.7839]
[1761611706402,1.30626421,4119.5,4119.4,0.3242]
[1761611706597,1.30626421,4119.5,4119.4,0.5507]
[1761611707101,1.30799757,4119.7,4119.5,0.3242]
[1761611707301,0.00173336,4119.7,4119.6,0.7704]
[1761611708406,0.00173336,4119.7,4119.2,0.3242]
[1761611708610,1.30626421,4119.6,4119.2,0.3242]
[1761611708910,1.30799757,4119.7,4119.3,0.3242]
[1761611709308,1.30626421,4119.6,4119.3,0.3242]
[1761611710408,1.30626421,4119.5,4119.3,0.3242]
[1761611710709,1.30626421,4119.5,4119.0,0.4613]